[Event "Early-Titled-Tuesday-Blitz-July-09-2024"]
[Site "Chess.com"]
[Date "2024.07.09"]
[Round "3"]
[White "jlf287"]
[Black "Ykow"]
[Result "0-1"]
[WhiteElo "2478"]
[BlackElo "2746"]
[TimeControl "180+1"]
[EndTime "8:26:56 PDT"]
[Termination "Ykow won by checkmate"]

1. d4 {[%clk 0:03:00.9]} 1... d5 {[%clk 0:02:59.9]} 2. c4 {[%clk 0:03:01.4]}
2... e6 {[%clk 0:02:59.8]} 3. Nc3 {[%clk 0:03:00.2]} 3... c6 {[%clk 0:02:59.5]}
4. e3 {[%clk 0:02:52.4]} 4... f5 {[%clk 0:02:59]} 5. Bd3 {[%clk 0:02:47.4]} 5...
Bd6 {[%clk 0:02:57]} 6. Nge2 {[%clk 0:02:44.6]} 6... Nh6 {[%clk 0:02:56.4]} 7.
b3 {[%clk 0:02:36.8]} 7... O-O {[%clk 0:02:48.7]} 8. Bb2 {[%clk 0:02:37]} 8...
Nd7 {[%clk 0:02:47.3]} 9. O-O {[%clk 0:02:33.3]} 9... Bxh2+ {[%clk 0:02:37.5]}
10. Kxh2 {[%clk 0:02:30]} 10... Ng4+ {[%clk 0:02:37.8]} 11. Kh3 {[%clk
0:02:15.6]} 11... Qg5 {[%clk 0:02:35.1]} 12. g3 {[%clk 0:01:56]} 12... Qh6+
{[%clk 0:02:26.4]} 13. Kg2 {[%clk 0:01:55.9]} 13... Qh2+ {[%clk 0:02:27.3]} 14.
Kf3 {[%clk 0:01:56.2]} 14... e5 {[%clk 0:02:28.2]} 15. Ng1 {[%clk 0:01:31.1]}
15... f4 {[%clk 0:01:58.2]} 16. exf4 {[%clk 0:01:09.7]} 16... exf4 {[%clk
0:01:57.5]} 17. Ke2 {[%clk 0:01:01.7]} 17... fxg3 {[%clk 0:01:57.2]} 18. Nf3
{[%clk 0:00:58.4]} 18... Qg2 {[%clk 0:01:54.4]} 19. Ne1 {[%clk 0:00:42.8]} 19...
Rxf2+ {[%clk 0:01:34.3]} 20. Rxf2 {[%clk 0:00:41.3]} 20... Qxf2# {[%clk
0:01:35.2]} 0-1

[Event "Early-Titled-Tuesday-Blitz-July-09-2024"]
[Site "Chess.com"]
[Date "2024.07.09"]
[Round "3"]
[White "HansOnTwitch"]
[Black "mwpchess"]
[Result "1-0"]
[WhiteElo "3136"]
[BlackElo "2757"]
[TimeControl "180+1"]
[EndTime "8:27:09 PDT"]
[Termination "HansOnTwitch won by resignation"]

1. e4 {[%clk 0:03:00.9]} 1... c6 {[%clk 0:03:00]} 2. d4 {[%clk 0:03:00.1]} 2...
d5 {[%clk 0:03:00]} 3. e5 {[%clk 0:03:00.6]} 3... Bf5 {[%clk 0:02:59.9]} 4. Nd2
{[%clk 0:02:59.6]} 4... e6 {[%clk 0:02:59.6]} 5. Nb3 {[%clk 0:03:00.2]} 5... Nd7
{[%clk 0:02:58.2]} 6. Nf3 {[%clk 0:03:00]} 6... a6 {[%clk 0:02:57.6]} 7. Be2
{[%clk 0:02:55.4]} 7... c5 {[%clk 0:02:56.9]} 8. c3 {[%clk 0:02:54.2]} 8... h6
{[%clk 0:02:53.9]} 9. O-O {[%clk 0:02:53.9]} 9... Rc8 {[%clk 0:02:52.1]} 10. Be3
{[%clk 0:02:53.4]} 10... c4 {[%clk 0:02:48.8]} 11. Nbd2 {[%clk 0:02:53.5]} 11...
Ne7 {[%clk 0:02:47.7]} 12. Nh4 {[%clk 0:02:53.6]} 12... Bh7 {[%clk 0:02:47.4]}
13. f4 {[%clk 0:02:54.1]} 13... Nf5 {[%clk 0:02:39.9]} 14. Nxf5 {[%clk
0:02:53.6]} 14... Bxf5 {[%clk 0:02:40.8]} 15. g4 {[%clk 0:02:54]} 15... Bh7
{[%clk 0:02:41.1]} 16. f5 {[%clk 0:02:54.5]} 16... Be7 {[%clk 0:02:41]} 17. Qe1
{[%clk 0:02:18.5]} 17... Bg5 {[%clk 0:02:35.4]} 18. Qg3 {[%clk 0:02:17.8]} 18...
Bxe3+ {[%clk 0:02:29.3]} 19. Qxe3 {[%clk 0:02:18.7]} 19... Qg5 {[%clk
0:02:29.2]} 20. Qxg5 {[%clk 0:02:18.7]} 20... hxg5 {[%clk 0:02:29]} 21. fxe6
{[%clk 0:02:16.6]} 21... fxe6 {[%clk 0:02:28.9]} 22. Nf3 {[%clk 0:02:17.3]}
22... Ke7 {[%clk 0:02:08.6]} 23. Nxg5 {[%clk 0:02:17.3]} 23... Rcf8 {[%clk
0:02:08.8]} 24. Kg2 {[%clk 0:02:16.2]} 24... Rxf1 {[%clk 0:02:02.1]} 25. Rxf1
{[%clk 0:02:15.6]} 25... Bg6 {[%clk 0:02:02.4]} 26. Kg3 {[%clk 0:02:14.7]} 26...
Be8 {[%clk 0:01:55.5]} 27. h4 {[%clk 0:02:13.9]} 27... b5 {[%clk 0:01:55.4]} 28.
h5 {[%clk 0:02:13.5]} 28... a5 {[%clk 0:01:52.8]} 29. a3 {[%clk 0:02:09]} 29...
a4 {[%clk 0:01:39.7]} 30. Bd1 {[%clk 0:02:07.5]} 30... Nb8 {[%clk 0:01:33.8]}
31. Bc2 {[%clk 0:02:07.7]} 31... Nc6 {[%clk 0:01:33.9]} 32. Nh3 {[%clk
0:01:59.5]} 32... Nd8 {[%clk 0:01:07.4]} 33. Nf4 {[%clk 0:01:58.9]} 33... Rf8
{[%clk 0:01:02.9]} 34. Rh1 {[%clk 0:01:56.8]} 34... Rh8 {[%clk 0:01:02.1]} 35.
g5 {[%clk 0:01:57.1]} 35... Rg8 {[%clk 0:00:55.7]} 36. Kg4 {[%clk 0:01:56.8]}
36... Nf7 {[%clk 0:00:55.3]} 37. Bh7 {[%clk 0:01:55.6]} 1-0

[Event "Early-Titled-Tuesday-Blitz-July-09-2024"]
[Site "Chess.com"]
[Date "2024.07.09"]
[Round "3"]
[White "Aygehovit1992"]
[Black "SHIVACalypso"]
[Result "1-0"]
[WhiteElo "2774"]
[BlackElo "2500"]
[TimeControl "180+1"]
[EndTime "8:27:09 PDT"]
[Termination "Aygehovit1992 won by resignation"]

1. e4 {[%clk 0:03:00.3]} 1... e6 {[%clk 0:02:59.7]} 2. d4 {[%clk 0:03:00.3]}
2... d5 {[%clk 0:02:59.8]} 3. Nc3 {[%clk 0:03:01.2]} 3... Nf6 {[%clk 0:02:58.5]}
4. Bg5 {[%clk 0:03:00.1]} 4... Be7 {[%clk 0:02:57.3]} 5. e5 {[%clk 0:03:00.1]}
5... Nfd7 {[%clk 0:02:56.3]} 6. h4 {[%clk 0:03:00.8]} 6... h6 {[%clk 0:02:50.9]}
7. Bxe7 {[%clk 0:03:00.2]} 7... Qxe7 {[%clk 0:02:51.8]} 8. f4 {[%clk 0:03:00.8]}
8... a6 {[%clk 0:02:50.4]} 9. Nf3 {[%clk 0:02:56.9]} 9... c5 {[%clk 0:02:49.4]}
10. dxc5 {[%clk 0:02:56.4]} 10... Nc6 {[%clk 0:02:45.5]} 11. Qd2 {[%clk
0:02:56]} 11... Nxc5 {[%clk 0:02:44.8]} 12. O-O-O {[%clk 0:02:55.7]} 12... b5
{[%clk 0:02:43.4]} 13. Bd3 {[%clk 0:02:56.3]} 13... b4 {[%clk 0:02:40.9]} 14.
Ne2 {[%clk 0:02:56.4]} 14... a5 {[%clk 0:02:40.9]} 15. Ned4 {[%clk 0:02:50.4]}
15... Nxd4 {[%clk 0:02:39.4]} 16. Nxd4 {[%clk 0:02:50.4]} 16... Ba6 {[%clk
0:02:36]} 17. Kb1 {[%clk 0:02:41.9]} 17... Bxd3 {[%clk 0:02:30.4]} 18. cxd3
{[%clk 0:02:41.9]} 18... O-O {[%clk 0:02:30.6]} 19. Rh3 {[%clk 0:02:39.1]} 19...
Rfc8 {[%clk 0:02:29.6]} 20. Rg3 {[%clk 0:02:16.8]} 20... Na4 {[%clk 0:02:29.6]}
21. f5 {[%clk 0:02:14.7]} 21... Qxh4 {[%clk 0:02:15.5]} 22. Qf2 {[%clk
0:02:14.6]} 22... Kh8 {[%clk 0:02:06.9]} 23. f6 {[%clk 0:02:12.2]} 23... g6
{[%clk 0:02:01.9]} 24. Qe3 {[%clk 0:02:07.5]} 24... Kg8 {[%clk 0:01:40]} 25. Rh3
{[%clk 0:01:57.5]} 25... Qg4 {[%clk 0:01:36.6]} 26. Rdh1 {[%clk 0:01:57.9]}
26... Qxg2 {[%clk 0:01:29.2]} 27. R3h2 {[%clk 0:01:56.8]} 27... Qg4 {[%clk
0:00:48]} 28. Rxh6 {[%clk 0:01:50.1]} 1-0

[Event "Early-Titled-Tuesday-Blitz-July-09-2024"]
[Site "Chess.com"]
[Date "2024.07.09"]
[Round "3"]
[White "Kimkibo"]
[Black "ValeriyGrinev"]
[Result "0-1"]
[WhiteElo "2444"]
[BlackElo "2667"]
[TimeControl "180+1"]
[EndTime "8:27:16 PDT"]
[Termination "ValeriyGrinev won by resignation"]

1. e4 {[%clk 0:03:00.9]} 1... c6 {[%clk 0:02:59.5]} 2. Nf3 {[%clk 0:02:57.6]}
2... d5 {[%clk 0:03:00.4]} 3. d3 {[%clk 0:02:58]} 3... Qc7 {[%clk 0:02:58.4]} 4.
h3 {[%clk 0:02:51.3]} 4... e5 {[%clk 0:02:57.2]} 5. Be2 {[%clk 0:02:41.1]} 5...
Nf6 {[%clk 0:02:56]} 6. exd5 {[%clk 0:02:39.7]} 6... cxd5 {[%clk 0:02:54.8]} 7.
O-O {[%clk 0:02:40.2]} 7... Nc6 {[%clk 0:02:54.2]} 8. Re1 {[%clk 0:02:40]} 8...
Bd6 {[%clk 0:02:52.6]} 9. Nc3 {[%clk 0:02:39.4]} 9... a6 {[%clk 0:02:50.4]} 10.
Bg5 {[%clk 0:02:39.4]} 10... Be6 {[%clk 0:02:45.6]} 11. a3 {[%clk 0:02:35.3]}
11... h6 {[%clk 0:02:41.3]} 12. Bh4 {[%clk 0:02:27.3]} 12... g5 {[%clk
0:02:39.2]} 13. Bg3 {[%clk 0:02:27.6]} 13... Nh5 {[%clk 0:02:37.5]} 14. Bh2
{[%clk 0:02:03.5]} 14... Nf4 {[%clk 0:02:37]} 15. Bf1 {[%clk 0:02:02.7]} 15...
O-O-O {[%clk 0:02:34]} 16. b4 {[%clk 0:02:01.5]} 16... Rhg8 {[%clk 0:02:29.2]}
17. Ne2 {[%clk 0:01:45.6]} 17... g4 {[%clk 0:02:24.7]} 18. Nxf4 {[%clk
0:01:40.6]} 18... exf4 {[%clk 0:02:20.4]} 19. hxg4 {[%clk 0:01:38.8]} 19... Bxg4
{[%clk 0:02:15.7]} 20. Be2 {[%clk 0:01:39.1]} 20... Rg7 {[%clk 0:02:13.3]} 21.
Nh4 {[%clk 0:01:23.5]} 21... Rdg8 {[%clk 0:02:11.6]} 22. Kh1 {[%clk 0:01:11.6]}
22... f3 {[%clk 0:01:52.3]} 23. gxf3 {[%clk 0:00:52.2]} 23... Bh3 {[%clk
0:01:48.1]} 24. Bxd6 {[%clk 0:00:46]} 24... Qxd6 {[%clk 0:01:49]} 25. Qd2 {[%clk
0:00:42.1]} 25... Qf6 {[%clk 0:01:40.2]} 0-1

[Event "Early-Titled-Tuesday-Blitz-July-09-2024"]
[Site "Chess.com"]
[Date "2024.07.09"]
[Round "3"]
[White "FGHSMN"]
[Black "Mops_2004"]
[Result "1-0"]
[WhiteElo "3002"]
[BlackElo "2735"]
[TimeControl "180+1"]
[EndTime "8:27:17 PDT"]
[Termination "FGHSMN won by resignation"]

1. e4 {[%clk 0:03:00.9]} 1... c6 {[%clk 0:03:00]} 2. d4 {[%clk 0:03:00.5]} 2...
d5 {[%clk 0:03:00.2]} 3. e5 {[%clk 0:03:01]} 3... Bf5 {[%clk 0:02:59.6]} 4. g4
{[%clk 0:03:01.5]} 4... Bg6 {[%clk 0:02:58.4]} 5. Ne2 {[%clk 0:03:00]} 5... e6
{[%clk 0:02:50]} 6. Nf4 {[%clk 0:02:59.9]} 6... Ne7 {[%clk 0:02:39.5]} 7. h4
{[%clk 0:02:58.3]} 7... h5 {[%clk 0:02:36.8]} 8. gxh5 {[%clk 0:02:52.6]} 8...
Be4 {[%clk 0:02:36.3]} 9. Rg1 {[%clk 0:02:49.7]} 9... c5 {[%clk 0:02:31.6]} 10.
dxc5 {[%clk 0:02:36.3]} 10... Nd7 {[%clk 0:02:31.4]} 11. Nc3 {[%clk 0:02:34.8]}
11... Nxc5 {[%clk 0:02:20.4]} 12. Be3 {[%clk 0:02:32.9]} 12... Nf5 {[%clk
0:02:14.3]} 13. Bb5+ {[%clk 0:02:27.7]} 13... Nd7 {[%clk 0:02:08.1]} 14. Nxe4
{[%clk 0:02:19.9]} 14... dxe4 {[%clk 0:02:08]} 15. Qd2 {[%clk 0:02:08.5]} 15...
a6 {[%clk 0:02:05.3]} 16. Bb6 {[%clk 0:02:04.8]} 16... Qe7 {[%clk 0:01:52.9]}
17. Ba4 {[%clk 0:01:59.7]} 17... Rc8 {[%clk 0:01:19.5]} 18. O-O-O {[%clk
0:01:49.4]} 18... Rc6 {[%clk 0:01:19.6]} 19. Bxc6 {[%clk 0:01:44.4]} 19... bxc6
{[%clk 0:01:19.8]} 20. Bc7 {[%clk 0:01:26.4]} 20... Nxh4 {[%clk 0:01:06]} 21.
Qa5 {[%clk 0:01:17.8]} 21... Nf3 {[%clk 0:01:01.8]} 22. Qxa6 {[%clk 0:01:16.9]}
1-0

[Event "Early-Titled-Tuesday-Blitz-July-09-2024"]
[Site "Chess.com"]
[Date "2024.07.09"]
[Round "3"]
[White "YairParkhov"]
[Black "talaicito"]
[Result "1-0"]
[WhiteElo "2753"]
[BlackElo "2350"]
[TimeControl "180+1"]
[EndTime "8:27:30 PDT"]
[Termination "YairParkhov won by resignation"]

1. d4 {[%clk 0:03:00.9]} 1... e6 {[%clk 0:02:57.5]} 2. c4 {[%clk 0:02:58.5]}
2... f5 {[%clk 0:02:57.8]} 3. Nf3 {[%clk 0:02:57]} 3... Nf6 {[%clk 0:02:58.3]}
4. g3 {[%clk 0:02:57.2]} 4... Be7 {[%clk 0:02:59]} 5. Bg2 {[%clk 0:02:57.7]}
5... O-O {[%clk 0:02:59.8]} 6. O-O {[%clk 0:02:58.2]} 6... d6 {[%clk 0:03:00.6]}
7. b3 {[%clk 0:02:56.6]} 7... a5 {[%clk 0:03:00.7]} 8. Nc3 {[%clk 0:02:54.4]}
8... Ne4 {[%clk 0:02:54.3]} 9. Bb2 {[%clk 0:02:54.3]} 9... Bf6 {[%clk
0:02:50.9]} 10. e3 {[%clk 0:02:50.7]} 10... Nc6 {[%clk 0:02:49.3]} 11. Nd2
{[%clk 0:02:44.4]} 11... Nxc3 {[%clk 0:02:35.3]} 12. Bxc3 {[%clk 0:02:44.4]}
12... e5 {[%clk 0:02:35.3]} 13. Bd5+ {[%clk 0:02:43.8]} 13... Kh8 {[%clk
0:02:34.4]} 14. Bxc6 {[%clk 0:02:41.7]} 14... bxc6 {[%clk 0:02:34.2]} 15. dxe5
{[%clk 0:02:42.3]} 15... dxe5 {[%clk 0:02:34.1]} 16. Nf3 {[%clk 0:02:39.1]}
16... Qe7 {[%clk 0:02:23.8]} 17. Qc2 {[%clk 0:02:37.9]} 17... c5 {[%clk
0:01:43.4]} 18. Qb2 {[%clk 0:02:36.7]} 18... e4 {[%clk 0:01:38.7]} 19. Bxf6
{[%clk 0:02:35.8]} 19... Rxf6 {[%clk 0:01:36.8]} 20. Nh4 {[%clk 0:02:30.7]}
20... f4 {[%clk 0:01:15.3]} 21. exf4 {[%clk 0:02:26.8]} 21... Rxf4 {[%clk
0:01:13.8]} 22. Ng2 {[%clk 0:02:12.6]} 22... Rf3 {[%clk 0:01:01.3]} 23. Rfe1
{[%clk 0:02:09.5]} 23... Bh3 {[%clk 0:00:53.4]} 24. Qe2 {[%clk 0:02:06.2]} 24...
Re8 {[%clk 0:00:39.3]} 25. Rad1 {[%clk 0:01:58.7]} 25... h6 {[%clk 0:00:38.5]}
26. Nf4 {[%clk 0:01:36.2]} 26... Bg4 {[%clk 0:00:34.9]} 27. Ng6+ {[%clk
0:01:36.2]} 27... Kh7 {[%clk 0:00:31.4]} 28. Nxe7 {[%clk 0:01:36.4]} 28... Rxg3+
{[%clk 0:00:31.4]} 29. hxg3 {[%clk 0:01:36.3]} 29... Bxe2 {[%clk 0:00:31.9]} 30.
Rxe2 {[%clk 0:01:37]} 30... Rxe7 {[%clk 0:00:32.3]} 31. Rde1 {[%clk 0:01:37.6]}
1-0

[Event "Early-Titled-Tuesday-Blitz-July-09-2024"]
[Site "Chess.com"]
[Date "2024.07.09"]
[Round "3"]
[White "rionelG"]
[Black "Andrey-Ivanov2011"]
[Result "1-0"]
[WhiteElo "2413"]
[BlackElo "2161"]
[TimeControl "180+1"]
[EndTime "8:27:30 PDT"]
[Termination "rionelG won by checkmate"]

1. e4 {[%clk 0:03:00.9]} 1... c5 {[%clk 0:02:59.6]} 2. g3 {[%clk 0:03:00.6]}
2... d6 {[%clk 0:02:59.8]} 3. Bg2 {[%clk 0:03:00.8]} 3... Nf6 {[%clk 0:02:59.8]}
4. Ne2 {[%clk 0:03:01.4]} 4... e5 {[%clk 0:03:00.2]} 5. c3 {[%clk 0:03:01.5]}
5... Nc6 {[%clk 0:03:00.4]} 6. d4 {[%clk 0:03:01.4]} 6... cxd4 {[%clk
0:03:00.2]} 7. cxd4 {[%clk 0:03:02.3]} 7... exd4 {[%clk 0:03:00.8]} 8. Nxd4
{[%clk 0:03:01.9]} 8... Be7 {[%clk 0:03:01.5]} 9. Nc3 {[%clk 0:03:00.7]} 9...
O-O {[%clk 0:03:01.5]} 10. h3 {[%clk 0:02:59.8]} 10... Be6 {[%clk 0:03:00.9]}
11. O-O {[%clk 0:02:59]} 11... Rc8 {[%clk 0:03:01]} 12. Be3 {[%clk 0:02:54.4]}
12... a6 {[%clk 0:03:00.5]} 13. f4 {[%clk 0:02:48.2]} 13... Bc4 {[%clk 0:03:00]}
14. Re1 {[%clk 0:02:44.6]} 14... Nb4 {[%clk 0:03:00.5]} 15. Qd2 {[%clk
0:02:36.5]} 15... Nd3 {[%clk 0:02:58.7]} 16. Red1 {[%clk 0:02:34]} 16... Nc5
{[%clk 0:02:58.8]} 17. Rac1 {[%clk 0:02:17.1]} 17... Nd3 {[%clk 0:02:55.6]} 18.
Rc2 {[%clk 0:02:13.4]} 18... Nb4 {[%clk 0:02:55.8]} 19. Rcc1 {[%clk 0:02:09.2]}
19... Nxa2 {[%clk 0:02:55.9]} 20. Nxa2 {[%clk 0:02:06.4]} 20... Bxa2 {[%clk
0:02:55.3]} 21. b3 {[%clk 0:02:06]} 21... Rxc1 {[%clk 0:02:52.4]} 22. Rxc1
{[%clk 0:02:06.9]} 22... d5 {[%clk 0:02:50.5]} 23. e5 {[%clk 0:01:55.5]} 23...
Ne4 {[%clk 0:02:44.6]} 24. Bxe4 {[%clk 0:01:55.6]} 24... dxe4 {[%clk 0:02:45.5]}
25. Qxa2 {[%clk 0:01:55.5]} 25... Bc5 {[%clk 0:02:45.9]} 26. Qf2 {[%clk
0:01:54.6]} 26... Ba7 {[%clk 0:02:44.1]} 27. Nf5 {[%clk 0:01:51.5]} 27... Bxe3
{[%clk 0:02:42.6]} 28. Qxe3 {[%clk 0:01:52.4]} 28... Qa5 {[%clk 0:02:40.1]} 29.
Qxe4 {[%clk 0:01:46.6]} 29... Qa3 {[%clk 0:02:39.7]} 30. Qe3 {[%clk 0:01:45.9]}
30... h6 {[%clk 0:02:38.7]} 31. Nd6 {[%clk 0:01:44.7]} 31... Rd8 {[%clk
0:02:36.1]} 32. h4 {[%clk 0:01:43]} 32... a5 {[%clk 0:02:34]} 33. Rc7 {[%clk
0:01:35.3]} 33... Qa1+ {[%clk 0:02:29.3]} 34. Kh2 {[%clk 0:01:32.8]} 34... Qb2+
{[%clk 0:02:29.3]} 35. Kh3 {[%clk 0:01:32.1]} 35... Qa1 {[%clk 0:02:29.5]} 36.
Qc1 {[%clk 0:01:24.5]} 36... Qd4 {[%clk 0:02:23.3]} 37. Qc4 {[%clk 0:01:22]}
37... Qxc4 {[%clk 0:02:11.6]} 38. Nxc4 {[%clk 0:01:21.7]} 38... Rd1 {[%clk
0:02:10.6]} 39. Rxb7 {[%clk 0:01:20.4]} 39... Rb1 {[%clk 0:02:10.7]} 40. Nxa5
{[%clk 0:01:19.9]} 40... Kh7 {[%clk 0:02:10.7]} 41. Rxf7 {[%clk 0:01:17.9]}
41... Rb2 {[%clk 0:02:10.9]} 42. f5 {[%clk 0:01:13.8]} 42... h5 {[%clk
0:02:10.5]} 43. f6 {[%clk 0:01:10.1]} 43... Kh6 {[%clk 0:02:10.3]} 44. fxg7
{[%clk 0:01:07.2]} 44... Ra2 {[%clk 0:02:05.6]} 45. Nc4 {[%clk 0:01:03.7]} 45...
Rc2 {[%clk 0:02:04]} 46. Ne3 {[%clk 0:01:01.4]} 46... Re2 {[%clk 0:01:54.9]} 47.
Nf5+ {[%clk 0:01:00.6]} 47... Kg6 {[%clk 0:01:50.8]} 48. g8=Q# {[%clk
0:00:59.5]} 1-0

[Event "Early-Titled-Tuesday-Blitz-July-09-2024"]
[Site "Chess.com"]
[Date "2024.07.09"]
[Round "3"]
[White "IamSchrodingersCat"]
[Black "ViIIagra"]
[Result "0-1"]
[WhiteElo "2654"]
[BlackElo "2876"]
[TimeControl "180+1"]
[EndTime "8:27:32 PDT"]
[Termination "ViIIagra won by resignation"]

1. e4 {[%clk 0:03:00.9]} 1... g6 {[%clk 0:03:00.5]} 2. d4 {[%clk 0:03:00.9]}
2... d6 {[%clk 0:03:01.2]} 3. Nc3 {[%clk 0:03:00.7]} 3... a6 {[%clk 0:03:01.7]}
4. f4 {[%clk 0:03:00.8]} 4... b5 {[%clk 0:03:01.6]} 5. Bd3 {[%clk 0:03:00]} 5...
Nd7 {[%clk 0:03:00]} 6. Nf3 {[%clk 0:02:56.2]} 6... c5 {[%clk 0:03:00.6]} 7. a4
{[%clk 0:02:39.3]} 7... c4 {[%clk 0:02:43.2]} 8. Be2 {[%clk 0:02:36.3]} 8... Bb7
{[%clk 0:02:43.8]} 9. axb5 {[%clk 0:02:19.9]} 9... axb5 {[%clk 0:02:42.8]} 10.
Rxa8 {[%clk 0:02:20.8]} 10... Bxa8 {[%clk 0:02:29.1]} 11. Nxb5 {[%clk
0:01:57.8]} 11... Bxe4 {[%clk 0:02:27.5]} 12. Bxc4 {[%clk 0:01:56.3]} 12... Ngf6
{[%clk 0:02:27.7]} 13. Ng5 {[%clk 0:01:15.1]} 13... e6 {[%clk 0:02:06.7]} 14.
Nxe4 {[%clk 0:01:08.2]} 14... Nxe4 {[%clk 0:02:07.6]} 15. O-O {[%clk 0:01:02.8]}
15... Be7 {[%clk 0:02:07.4]} 16. f5 {[%clk 0:00:36.6]} 16... gxf5 {[%clk
0:02:04.6]} 17. Qh5 {[%clk 0:00:35]} 17... Ndf6 {[%clk 0:01:59.9]} 18. Qf3
{[%clk 0:00:24.1]} 18... Qb6 {[%clk 0:01:58.9]} 19. c3 {[%clk 0:00:19.2]} 19...
Rg8 {[%clk 0:01:48.5]} 20. Bd3 {[%clk 0:00:14.1]} 20... Rg6 {[%clk 0:01:47]} 21.
Na3 {[%clk 0:00:12.1]} 21... d5 {[%clk 0:01:47.2]} 22. Nc2 {[%clk 0:00:11.4]}
22... Bd6 {[%clk 0:01:47.8]} 23. Ne3 {[%clk 0:00:10.1]} 23... Qb8 {[%clk
0:01:47.4]} 24. h3 {[%clk 0:00:06.2]} 24... Bh2+ {[%clk 0:01:47.1]} 0-1

[Event "Early-Titled-Tuesday-Blitz-July-09-2024"]
[Site "Chess.com"]
[Date "2024.07.09"]
[Round "3"]
[White "Makswolf200817"]
[Black "AwareIdea"]
[Result "1-0"]
[WhiteElo "2761"]
[BlackElo "2488"]
[TimeControl "180+1"]
[EndTime "8:27:33 PDT"]
[Termination "Makswolf200817 won by resignation"]

1. e4 {[%clk 0:03:00.9]} 1... e5 {[%clk 0:02:59.5]} 2. Nf3 {[%clk 0:03:00.2]}
2... Nc6 {[%clk 0:02:59.9]} 3. Bc4 {[%clk 0:03:00.7]} 3... Bc5 {[%clk
0:02:58.6]} 4. c3 {[%clk 0:03:00.3]} 4... Nf6 {[%clk 0:02:58.1]} 5. d3 {[%clk
0:03:00.6]} 5... a6 {[%clk 0:02:57.9]} 6. a4 {[%clk 0:02:58.9]} 6... Ba7 {[%clk
0:02:57.7]} 7. Nbd2 {[%clk 0:02:56.2]} 7... d5 {[%clk 0:02:46.2]} 8. exd5 {[%clk
0:02:55.7]} 8... Nxd5 {[%clk 0:02:47.1]} 9. O-O {[%clk 0:02:55.7]} 9... O-O
{[%clk 0:02:46.9]} 10. Re1 {[%clk 0:02:53.7]} 10... Nf4 {[%clk 0:02:08.9]} 11.
Ne4 {[%clk 0:02:31.3]} 11... Bg4 {[%clk 0:01:23.3]} 12. Bxf4 {[%clk 0:02:16.9]}
12... exf4 {[%clk 0:01:24.2]} 13. d4 {[%clk 0:02:17.1]} 13... Ne7 {[%clk
0:01:16.5]} 14. Neg5 {[%clk 0:02:10.1]} 14... Ng6 {[%clk 0:01:08.6]} 15. Qb3
{[%clk 0:02:06.2]} 15... Bxf3 {[%clk 0:00:54.9]} 16. Bxf7+ {[%clk 0:02:05.3]}
16... Kh8 {[%clk 0:00:46]} 17. Nxf3 {[%clk 0:02:05.6]} 17... Nh4 {[%clk
0:00:38.9]} 18. Nxh4 {[%clk 0:02:02.2]} 18... Qxh4 {[%clk 0:00:39.8]} 19. Qxb7
{[%clk 0:02:01]} 19... c5 {[%clk 0:00:20.5]} 20. Rad1 {[%clk 0:01:42]} 20...
cxd4 {[%clk 0:00:20.4]} 21. cxd4 {[%clk 0:01:42.9]} 21... Qf6 {[%clk 0:00:13.6]}
22. Bd5 {[%clk 0:01:43]} 22... Bxd4 {[%clk 0:00:12.1]} 23. Qb4 {[%clk
0:01:43.7]} 23... Rab8 {[%clk 0:00:11.1]} 24. Qxd4 {[%clk 0:01:43.9]} 24... Qxd4
{[%clk 0:00:10]} 25. Rxd4 {[%clk 0:01:44.8]} 1-0

[Event "Early-Titled-Tuesday-Blitz-July-09-2024"]
[Site "Chess.com"]
[Date "2024.07.09"]
[Round "3"]
[White "Arystanner"]
[Black "LikeWater"]
[Result "1-0"]
[WhiteElo "2902"]
[BlackElo "2697"]
[TimeControl "180+1"]
[EndTime "8:27:40 PDT"]
[Termination "Arystanner won by checkmate"]

1. d4 {[%clk 0:02:56.6]} 1... Nf6 {[%clk 0:02:58.7]} 2. c4 {[%clk 0:02:56.9]}
2... g6 {[%clk 0:02:59.1]} 3. Nc3 {[%clk 0:02:57.4]} 3... Bg7 {[%clk 0:02:59.2]}
4. e4 {[%clk 0:02:57.8]} 4... d6 {[%clk 0:02:59.5]} 5. Be2 {[%clk 0:02:58.3]}
5... O-O {[%clk 0:02:58.4]} 6. h4 {[%clk 0:02:59]} 6... c5 {[%clk 0:02:57.3]} 7.
d5 {[%clk 0:02:59.6]} 7... b5 {[%clk 0:02:55.9]} 8. cxb5 {[%clk 0:02:59.4]} 8...
a6 {[%clk 0:02:55.9]} 9. a4 {[%clk 0:02:45.3]} 9... axb5 {[%clk 0:02:52.9]} 10.
Bxb5 {[%clk 0:02:43.8]} 10... Ba6 {[%clk 0:02:53.4]} 11. Bd2 {[%clk 0:02:44.3]}
11... Nbd7 {[%clk 0:02:27.9]} 12. Nf3 {[%clk 0:02:42.5]} 12... Ng4 {[%clk
0:02:06]} 13. O-O {[%clk 0:02:39.6]} 13... Nge5 {[%clk 0:01:55.1]} 14. Nxe5
{[%clk 0:02:37.8]} 14... Nxe5 {[%clk 0:01:56]} 15. h5 {[%clk 0:02:33.8]} 15...
Nc4 {[%clk 0:01:49.9]} 16. Bxa6 {[%clk 0:02:21.2]} 16... Nxd2 {[%clk 0:01:46.1]}
17. Qxd2 {[%clk 0:02:21.1]} 17... Rxa6 {[%clk 0:01:45.8]} 18. h6 {[%clk
0:02:20.3]} 18... Bf6 {[%clk 0:01:37.3]} 19. Nb5 {[%clk 0:02:18.8]} 19... Qb6
{[%clk 0:01:32]} 20. Ra3 {[%clk 0:02:16]} 20... c4 {[%clk 0:01:30.4]} 21. Rc1
{[%clk 0:02:01.7]} 21... Rc8 {[%clk 0:01:30.6]} 22. Qb4 {[%clk 0:01:57.4]} 22...
Bd4 {[%clk 0:01:20.6]} 23. Rxc4 {[%clk 0:01:47.8]} 23... Bxf2+ {[%clk
0:01:20.4]} 24. Kf1 {[%clk 0:01:48.3]} 24... Bc5 {[%clk 0:01:21.3]} 25. Qc3
{[%clk 0:01:46.7]} 25... f6 {[%clk 0:00:51.3]} 26. b4 {[%clk 0:01:45.8]} 26...
Rxa4 {[%clk 0:00:51.7]} 27. Rxa4 {[%clk 0:01:45.6]} 27... Qxb5 {[%clk
0:00:51.9]} 28. bxc5 {[%clk 0:01:46.3]} 28... Rxc5 {[%clk 0:00:50.5]} 29. Rb4
{[%clk 0:01:39.5]} 29... Qa6 {[%clk 0:00:45.8]} 30. Kg1 {[%clk 0:01:39]} 30...
Ra5 {[%clk 0:00:43.6]} 31. Rc8+ {[%clk 0:01:38.2]} 31... Kf7 {[%clk 0:00:43.8]}
32. Rbb8 {[%clk 0:01:35.6]} 32... g5 {[%clk 0:00:38.1]} 33. Rf8+ {[%clk
0:01:34.8]} 33... Kg6 {[%clk 0:00:37.6]} 34. Rg8+ {[%clk 0:01:35.4]} 34... Kh5
{[%clk 0:00:36.2]} 35. Qh3# {[%clk 0:01:35.4]} 1-0